Cogmind - Beta 13 @@@ ROGUE MODE // 2024.04.10 @ 15:12:39 Player: Essnato Result: Destroyed by G-47 Trooper with Particle Gun Performance ------------- Evolutions (3) 1500 Regions Visited (8) 1600 Robots Destroyed (23) 115 Value Destroyed (512) 512 Prototype IDs (25) 500 Alien Tech Used (0) 0 Bonus (324) 324 TOTAL SCORE: 4551 Bonus ------- High Alert Combat Kills 24 Aligned with FarCom 300 Cogmind --------- Core Integrity 0/700 Matter 224/300 Energy 100/100 System Corruption 0% Temperature Cool (9) Movement Core (100) Ox1 Location -7/Factory Parts ------- > --- POWER (2) -------- (None) > --- PROPULSION (4) --- (None) > --- UTILITY (5) ------ Small Storage Unit > --- WEAPON (2) ------- (None) > --- INVENTORY (8) ---- Light Ion Engine Armored Wheel Improved Heat Sink Improved Power Shielding Improved Propulsion Shielding Peak State ------------ > --- POWER ------------ (None) > --- PROPULSION ------- (None) > --- UTILITY ---------- Small Storage Unit Weight Redist. System Weight Redist. System > --- WEAPON ----------- YOLO Cannon > --- INVENTORY -------- Light Ion Engine Armored Wheel Improved Heat Sink Improved Power Shielding Improved Propulsion Shielding [Rating: 26] Favorites ----------- Power Light Ion Engine Engine Light Ion Engine Propulsion Flight Unit Wheel Wheel Flight Unit Flight Unit Utility Weight Redist. System Device Weight Redist. System Storage Small Storage Unit Protection Improved Propulsion Shielding Weapon Mining Laser Energy Gun Improved Medium Laser Energy Cannon YOLO Cannon Ballistic Gun Assault Rifle Launcher Missile Launcher Special Weapon Mining Laser Build | -11 -10 -10 -9 -9 -9 -8 -8 -7 ------- Run | Yrd Mat Min Mat Min Exi Min Mat Fac Slots Evolved 6 | . . . 2 . . . 2 2 Power 1 | . . . . . . . . 1 Propulsion 2 | . . . 1 . . . 1 . Utility 3 | . . . 1 . . . 1 1 Weapon . | . . . . . . . . . Parts Attached 31 | 6 6 1 5 . 3 . 7 3 Power 3 | 1 . . . . . . 1 1 Engine 3 | 1 . . . . . . 1 1 Core . | . . . . . . . . . Reactor . | . . . . . . . . . Propulsion 10 | 2 2 . 2 . . . 3 1 Treads . | . . . . . . . . . Leg . | . . . . . . . . . Wheel 2 | 2 . . . . . . . . Hover . | . . . . . . . . . Flight 8 | . 2 . 2 . . . 3 1 Utility 10 | 1 2 . 2 . 2 . 3 . Device 5 | . 2 . . . 1 . 2 . Storage 1 | 1 . . . . . . . . Processor . | . . . . . . . . . Hackware . | . . . . . . . . . Protection 4 | . . . 2 . 1 . 1 . Artifact . | . . . . . . . . . Weapon 8 | 2 2 1 1 . 1 . . 1 Energy Gun 2 | . 2 . . . . . . . Energy Cannon 1 | . . . . . . . . 1 Ballistic Gun 2 | 2 . . . . . . . . Ballistic Cannon . | . . . . . . . . . Launcher 2 | . . 1 1 . . . . . Special Weapon 1 | . . . . . 1 . . . Impact Weapon . | . . . . . . . . . Slashing Weapon . | . . . . . . . . . Piercing Weapon . | . . . . . . . . . Special Melee Weapon . | . . . . . . . . . Unidentified Prototypes 2 | . 1 . . . 1 . . . Parts Lost 12 | . . . . . . . 1 11 Power 2 | . . . . . . . . 2 Propulsion 4 | . . . . . . . . 4 Utility 3 | . . . . . . . . 3 Weapon 3 | . . . . . . . 1 2 Highest Loss Streak 11 | . . . . . . . 1 11 To Critical Strikes . | . . . . . . . . . Average Slot Usage (%) 80 | . 87 84 88 88 92 100 91 70 Engine 12 | . 14 14 11 11 11 11 9 13 Wheel 3 | . 23 . . . . . . . Flight 22 | . 4 28 33 33 33 33 31 21 Device 12 | . 6 14 11 11 11 11 16 14 Storage 9 | . 14 14 11 11 11 11 9 7 Protection 6 | . . . 11 11 10 11 9 6 Energy Gun 2 | . 15 . . . . . . . Ballistic Gun 1 | . 9 . . . . . . . Launcher 4 | . . 13 11 11 11 11 7 . Special Weapon 4 | . . . . . 4 11 9 6 Naked Turns . | . . . . . . . . . Heaviest Build 23 | 11 15 12 16 16 17 17 17 23 Greatest Support 22 | 20 20 14 18 18 18 18 22 22 Greatest Overweight (x) 7 | . 3 . . . . . . 7 Average Overweight (x) . | . . . . . . . . . Largest Inventory Capacity 8 | 8 8 8 8 8 8 8 8 8 Average Capacity 7 | 7 8 8 8 8 8 8 8 8 Most Carried 8 | 2 8 8 8 8 8 8 8 8 Average Carried 7 | . 4 7 7 8 7 8 7 7 Final Capacity 8 | 8 8 8 8 8 8 8 8 8 Final Carried 8 | 1 8 8 8 8 8 8 8 5 Class Distribution -------------------- 55% | Mutant 37% | Scavenger-Mutant 6% | Scavenger-Sprinter Dominant Class ---------------- Mutant | -10/Materials Mutant | -10/Mines Mutant | -9/Materials Mutant | -9/Mines Mutant | -9/Exiles Mutant | -8/Mines Mutant | -8/Materials Scavenger-Mutant | -7/Factory Resources | -11 -10 -10 -9 -9 -9 -8 -8 -7 ----------- Run | Yrd Mat Min Mat Min Exi Min Mat Fac Matter Collected 495 | 217 138 22 . . . . . 118 Remotely . | . . . . . . . . . Salvage Created 430 | . 162 . 123 . . . 145 . Parts 36 | . 17 . 9 . . . 10 . Haulers Intercepted . | . . . . . . . . . Recyclers Shooed 1 | . . . 1 . . . . . Parts Field Recycled . | . . . . . . . . . Retrieved Matter . | . . . . . . . . . Parts Self-Destructed . | . . . . . . . . . Prevented . | . . . . . . . . . Kills | -11 -10 -10 -9 -9 -9 -8 -8 -7 ------- Run | Yrd Mat Min Mat Min Exi Min Mat Fac Combat Hostiles Destroyed 20 | . 6 . 8 . . . 6 . Guns 6 | . 6 . . . . . . . AOE 14 | . . . 8 . . . 6 . Classes Destroyed 4 | . 2 . 2 . . . . . Worker 1 | . . . 1 . . . . . Recycler 2 | . . . 1 . . . 1 . Swarmer 11 | . 3 . 3 . . . 5 . Grunt 9 | . 3 . 5 . . . 1 . Best Kill Streak 10 | . 3 . 10 . . . 7 . Combat Bots Only 8 | . 3 . 8 . . . 6 . Max Kills in Single Turn 3 | . 1 . 3 . . . 3 . Gunslinging . | . . . . . . . . . Exploded 3 | . . . 3 . . . 3 . Melee . | . . . . . . . . . Uniques/NPCs Destroyed . | . . . . . . . . . Combat | -11 -10 -10 -9 -9 -9 -8 -8 -7 -------- Run | Yrd Mat Min Mat Min Exi Min Mat Fac Hostile Shots Fired 231 | . 24 1 25 1 . . 39 141 Missed 85 | . 10 1 11 . . . 19 44 Damage Taken 2021 | . 136 . 172 11 . . 236 1466 Core 926 | . 63 . 46 11 . . 89 717 Absorbed by Shields . | . . . . . . . . . Redirected to Shielding 134 | . . . 26 . . . 46 62 Core Remaining (%) 85 | 100 . 74 . . . 85 83 . Volleys Fired 39 | . 16 . 7 . . . 4 12 Largest 2 | . 2 . 1 . . . 1 1 Hottest 112 | . 112 . 36 . . . 36 100 Shots Fired 55 | . 32 . 7 . . . 4 12 Gun 32 | . 32 . . . . . . . Cannon . | . . . . . . . . . Launcher 11 | . . . 7 . . . 4 . Special 12 | . . . . . . . . 12 Kinetic . | . . . . . . . . . Thermal 44 | . 32 . . . . . . 12 Explosive 11 | . . . 7 . . . 4 . Electromagnetic . | . . . . . . . . . Robot Hit Streak 4 | . 4 . 3 . . . 4 2 Robot Miss Streak 5 | . 5 . 2 . . . 2 1 Penetration Max . | . . . . . . . . . Secondary Targets 1 | . 1 . . . . . . . Max Gunslinging Chain 1 | . 1 . . . . . . . Shots Hit Robots 25 | . 16 . 4 . . . 2 3 Core Hits 30 | . 6 . 12 . . . 9 3 Critical Kills . | . . . . . . . . . Critical Parts Destroyed . | . . . . . . . . . Critical Strikes 2 | . 2 . . . . . . . Burn 2 | . 2 . . . . . . . Melee Attacks . | . . . . . . . . . Impact . | . . . . . . . . . Slashing . | . . . . . . . . . Piercing . | . . . . . . . . . Sneak Attacks . | . . . . . . . . . Combat Hostiles . | . . . . . . . . . Follow-up Attacks . | . . . . . . . . . Damage Inflicted 1804 | . 276 . 846 . . . 565 117 Guns 276 | . 276 . . . . . . . Cannons . | . . . . . . . . . Explosions 1411 | . . . 846 . . . 565 . Melee . | . . . . . . . . . Ramming 45 | . . . . . . . . 45 Kinetic . | . . . . . . . . . Thermal 543 | . 276 . 195 . . . . 72 Explosive 1216 | . . . 651 . . . 565 . Electromagnetic . | . . . . . . . . . Impact . | . . . . . . . . . Slashing . | . . . . . . . . . Piercing . | . . . . . . . . . Highest Corruption . | . . . . . . . . . Average Corruption . | . . . . . . . . . Corruption Purged . | . . . . . . . . . Corruption Blocked . | . . . . . . . . . Overload Shots . | . . . . . . . . . Overflow Damage 77 | . . . 73 . . . 4 . Projectiles . | . . . . . . . . . Explosions 77 | . . . 73 . . . 4 . Melee . | . . . . . . . . . Knockbacks . | . . . . . . . . . Impact . | . . . . . . . . . Kinetic . | . . . . . . . . . Secondary . | . . . . . . . . . Self-Inflicted Damage 37 | . . . 19 . . . . 18 Shots 1 | . . . 1 . . . . . Rammed 20 | . . . . . . . . 20 Targets Rammed 20 | . . . . . . . . 20 Kicked . | . . . . . . . . . Crushed . | . . . . . . . . . Highest Temperature 438 | . 438 . 16 . . . 5 128 Average Temperature 102 | . 171 . 8 . . . 4 41 Received Heat Transfer 204 | . 54 . 72 6 . . 63 9 Effects 5 | . 5 . . . . . . . Shutdowns 2 | . 2 . . . . . . . Energy Bleed 1 | . 1 . . . . . . . Matter Decay 1 | . 1 . . . . . . . Damage (minor) 1 | . 1 . . . . . . . Siege Activations . | . . . . . . . . . Robots Corrupted . | . . . . . . . . . Combat Hostiles . | . . . . . . . . . Parts Fried . | . . . . . . . . . Impact Corruptions . | . . . . . . . . . Robots Melted . | . . . . . . . . . Combat Hostiles . | . . . . . . . . . Parts Melted 1 | . 1 . . . . . . . Heat Transferred 1040 | . 740 . 150 . . . . 150 Parts Sabotaged . | . . . . . . . . . Parts Stolen . | . . . . . . . . . Parts Stripped . | . . . . . . . . . Power Chain Reactions . | . . . . . . . . . Alert | -11 -10 -10 -9 -9 -9 -8 -8 -7 ------- Run | Yrd Mat Min Mat Min Exi Min Mat Fac Peak Influence 559 | . 171 81 559 262 . . 245 111 Initial 217 | . . 66 31 217 . . . 111 Average 73 | . 61 68 133 247 . . 83 52 Maximum Alert Level 2 | . . . 2 1 . . 1 . Low Security (%) 90 | 100 100 100 79 . . 100 78 100 Level 1 8 | . . . 6 100 . . 21 . Level 2 1 | . . . 14 . . . . . Level 3 . | . . . . . . . . . Level 4 . | . . . . . . . . . Level 5 . | . . . . . . . . . High Security . | . . . . . . . . . Max Security . | . . . . . . . . . Squads Dispatched 7 | . 2 . 3 . . . . 2 Investigation 1 | . 1 . . . . . . . Extermination 1 | . . . . . . . . 1 Reinforcement 5 | . 1 . 3 . . . . 1 Assault . | . . . . . . . . . Garrison . | . . . . . . . . . Intercept . | . . . . . . . . . Searches Triggered . | . . . . . . . . . Construction Impeded . | . . . . . . . . . Haulers Reinforced . | . . . . . . . . . Active Scanning Responses . | . . . . . . . . . Cargo Convoy Interrupts . | . . . . . . . . . Stealth | -11 -10 -10 -9 -9 -9 -8 -8 -7 --------- Run | Yrd Mat Min Mat Min Exi Min Mat Fac Distress Signals 3 | . . . 1 . . . 1 1 Communications Jammed . | . . . . . . . . . Distress Signals . | . . . . . . . . . Times Spotted 69 | . 7 10 23 3 . . 18 8 Peak Tracking Total 17 | . 2 17 15 3 . . 13 9 Tactical Retreats 7 | . . 1 3 2 . . 1 . Traps | -11 -10 -10 -9 -9 -9 -8 -8 -7 ------- Run | Yrd Mat Min Mat Min Exi Min Mat Fac Traps Triggered 2 | . 1 . 1 . . . . . Indirectly . | . . . . . . . . . Trap Hack Attempts . | . . . . . . . . . Triggered . | . . . . . . . . . Disarmed . | . . . . . . . . . Reprogrammed . | . . . . . . . . . Reused . | . . . . . . . . . Traps Extracted . | . . . . . . . . . Installed . | . . . . . . . . . Triggered . | . . . . . . . . . Machines | -11 -10 -10 -9 -9 -9 -8 -8 -7 ---------- Run | Yrd Mat Min Mat Min Exi Min Mat Fac Machines Disabled 7 | . 1 . 3 . . . 1 2 Max in Single Turn 1 | . 1 . 1 . . . 1 1 Machines Repaired . | . . . . . . . . . Machines Dismantled . | . . . . . . . . . Machines Sabotaged . | . . . . . . . . . Overloaded Fab Kills . | . . . . . . . . . Hacking | -11 -10 -10 -9 -9 -9 -8 -8 -7 --------- Run | Yrd Mat Min Mat Min Exi Min Mat Fac Machines Accessed 8 | . 1 . 3 . 1 . 2 1 Terminals 6 | . 1 . 3 . . . 2 . Fabricators . | . . . . . . . . . Repair Stations . | . . . . . . . . . Recycling Units . | . . . . . . . . . Scanalyzers 1 | . . . . . . . . 1 Garrison Access . | . . . . . . . . . Total Hacks 19 | . 2 . 10 . 1 . 4 2 Successful 7 | . 1 . 2 . 1 . 1 2 Failed 12 | . 1 . 8 . . . 3 . Catastrophic 1 | . . . 1 . . . . . Database Lockouts . | . . . . . . . . . Manual 7 | . 2 . 4 . 1 . . . Terminals 16 | . 2 . 10 . . . 4 . Fabricators . | . . . . . . . . . Repair Stations . | . . . . . . . . . Recycling Units . | . . . . . . . . . Scanalyzers 2 | . . . . . . . . 2 Garrison Access . | . . . . . . . . . Terminal Hacks 5 | . 1 . 2 . 1 . 1 . Record 1 | . . . 1 . . . . . Prototype ID Bank 1 | . 1 . . . . . . . Branch Access Points 1 | . . . . . . . 1 . Locate Traps 1 | . . . 1 . . . . . Derelict Proto ID Bank 1 | . . . . . 1 . . . Fabricator Hacks . | . . . . . . . . . Repair Station Hacks . | . . . . . . . . . Recycling Unit Hacks . | . . . . . . . . . Scanalyzer 2 | . . . . . . . . 2 Insert Component 1 | . . . . . . . . 1 Analyze 1 | . . . . . . . . 1 Garrison Access Hacks . | . . . . . . . . . Unauthorized Hacks . | . . . . . . . . . Terminals . | . . . . . . . . . Fabricators . | . . . . . . . . . Repair Stations . | . . . . . . . . . Recycling Units . | . . . . . . . . . Scanalyzers . | . . . . . . . . . Garrison Access . | . . . . . . . . . Data Cores Recovered . | . . . . . . . . . Used . | . . . . . . . . . Hacking Detections 6 | . 1 . 3 . . . 2 . Full Trace Events . | . . . . . . . . . Feedback Events . | . . . . . . . . . Feedback Blocked . | . . . . . . . . . Robot Schematics Acquired . | . . . . . . . . . Robots Built . | . . . . . . . . . Authchips . | . . . . . . . . . Time . | . . . . . . . . . Total Robot Build Rating . | . . . . . . . . . Part Schematics Acquired 1 | . . . . . . . . 1 Parts Built . | . . . . . . . . . Authchips . | . . . . . . . . . Time . | . . . . . . . . . Total Part Build Rating . | . . . . . . . . . Parts Repaired . | . . . . . . . . . Time . | . . . . . . . . . Parts Recycled . | . . . . . . . . . Recycled Matter . | . . . . . . . . . Retrieved Matter . | . . . . . . . . . Retrieved Components . | . . . . . . . . . Parts Scanalyzed 1 | . . . . . . . . 1 Part Schematics Acquired 1 | . . . . . . . . 1 Parts Damaged . | . . . . . . . . . Bothacking | -11 -10 -10 -9 -9 -9 -8 -8 -7 ------------ Run | Yrd Mat Min Mat Min Exi Min Mat Fac Used RIF Installer . | . . . . . . . . . Robots Hacked . | . . . . . . . . . Non-combat . | . . . . . . . . . Combat . | . . . . . . . . . Robot Hacks Applied . | . . . . . . . . . Relay Couplers Released . | . . . . . . . . . Fabnet Peak Effective % . | . . . . . . . . . Robots Rewired . | . . . . . . . . . Allies Hacked . | . . . . . . . . . Hacks Repelled . | . . . . . . . . . Allies | -11 -10 -10 -9 -9 -9 -8 -8 -7 -------- Run | Yrd Mat Min Mat Min Exi Min Mat Fac Total Allies 2 | . . . . 2 . . . . Largest Group 2 | . . . . 2 2 . . . Highest-Rated Group 42 | . . . . 42 42 . . . Highest-Rated Ally 31 | . . . . 31 31 . . . Total Orders . | . . . . . . . . . Ally Attacks . | . . . . . . . . . Total Damage . | . . . . . . . . . Kills . | . . . . . . . . . Allies Corrupted . | . . . . . . . . . Allies Melted . | . . . . . . . . . Intel | -11 -10 -10 -9 -9 -9 -8 -8 -7 ------- Run | Yrd Mat Min Mat Min Exi Min Mat Fac Robot Analysis Total . | . . . . . . . . . Derelict Logs Recovered 1 | . . 1 . . . . . . Drone Launches . | . . . . . . . . . Drone Recoveries . | . . . . . . . . . Exploration | -11 -10 -10 -9 -9 -9 -8 -8 -7 ------------- Run | Yrd Mat Min Mat Min Exi Min Mat Fac Turns Passed 1974 | 54 273 135 162 121 130 56 123 920 Spaces Moved 2800 | 55 283 306 393 188 331 163 238 843 Core 53 | 2 . . . . . . . 51 Treads . | . . . . . . . . . Legs . | . . . . . . . . . Wheels 253 | 53 200 . . . . . . . Hover . | . . . . . . . . . Flight 2494 | . 83 306 393 188 331 163 238 792 Fastest Speed 29 | 50 37 37 34 34 34 34 29 29 Average Speed 55 | 78 70 37 34 34 34 34 31 90 Slowest Speed 400 | 80 285 37 34 34 34 34 34 400 Overloaded Moves . | . . . . . . . . . Propulsion Burnouts . | . . . . . . . . . Robots Hopped 25 | . . 4 6 3 . 3 2 7 Cave-ins Triggered . | . . . . . . . . . Exploration Rate (%) 39 | 3 34 61 49 54 62 43 30 22 Regions Visited 8 Branch Regions 4 Pre-discovered Areas . | . . . . . . . . . Known Exits Taken 1 | . . . . . . 1 . . Unknown Exits Taken 7 | 1 1 1 1 1 1 . 1 . Scrap Searched . | . . . . . . . . . Spaces Dug 11 | . . . 11 . . . . . Terrain Destroyed 74 | . . . 51 . . . 23 . Melee . | . . . . . . . . . Projectile . | . . . . . . . . . AOE 74 | . . . 51 . . . 23 . Terrain Rammed . | . . . . . . . . . Walls Destroyed . | . . . . . . . . . Machines Disabled . | . . . . . . . . . Actions | -11 -10 -10 -9 -9 -9 -8 -8 -7 --------- Run | Yrd Mat Min Mat Min Exi Min Mat Fac Total 3099 | 62 325 324 406 241 347 159 278 957 Wait 198 | . 4 14 1 57 11 . 29 82 Move 2743 | 54 282 297 380 181 330 156 233 830 Hop 24 | . . 4 6 3 . 3 2 6 Pick Up 21 | 2 8 4 4 . 1 . . 2 Fast Attach 16 | 5 5 1 2 . 1 . 2 . Attach 9 | 1 . . 3 . 1 . 1 3 Detach 3 | . 2 . . . . . 1 . Swap 6 | . 1 . . . 1 . 4 . Drop 20 | . 7 4 3 . 2 . 2 2 Fire 39 | . 16 . 7 . . . 4 12 Melee . | . . . . . . . . . Ram 20 | . . . . . . . . 20 Kick . | . . . . . . . . . Crush . | . . . . . . . . . Escape Stasis . | . . . . . . . . . Rewire . | . . . . . . . . . Trap . | . . . . . . . . . Miscellaneous . | . . . . . . . . . Route ------- -11/Scrapyard -10/Materials -10/Mines (discovered 2 exits: *Mat x2) -9/Materials (discovered 2 exits: Mat / [*Min]) -9/Mines (discovered 2 exits: *Mat / *Exi) -9/Exiles -8/Mines -8/Materials -7/Factory History --------- Turn | Location | Event 22 | -11/Scrapyard | Discovered new exit (range 16) 55 | -11/Scrapyard | Entered Materials 84 | -10/Materials | Discovered new exit (range 16) 320 | -10/Materials | Build established: Mutant 328 | -10/Materials | Entered Mines 338 | -10/Mines | Received a Rocket Launcher from a helpful Derelict 356 | -10/Mines | Discovered new exit (range 15) 366 | -10/Mines | Joined a pair of Derelicts in attacking an 0b10 outpost 416 | -10/Mines | Assembled infested the area 421 | -10/Mines | Assisted by a Guerilla fighting off Assembled 453 | -10/Mines | Discovered new exit (range 11) 458 | -10/Mines | Learned location of 1 exit from Materials 463 | -10/Mines | Entered Materials 463 | -9/Materials | Evolved 2 slots: Propulsion x1, Utility x1 464 | -9/Materials | Identified exit to Materials 620 | -9/Materials | Discovered new exit (range 11) 625 | -9/Materials | Entered Mines 628 | -9/Mines | Destroyed 8 combat bots 630 | -9/Mines | Met a Derelict bent on vengeance 660 | -9/Mines | Discovered exit to Materials (range 9) 687 | -9/Mines | Deemed a non-threat by the Exiles lab entrance 688 | -9/Mines | Discovered new exit (range 5) 746 | -9/Mines | Entered Exiles 746 | -9/Exiles | Accompanied by 2 allies 756 | -9/Exiles | Met 8R-AWN 760 | -9/Exiles | Met EX-HEX 776 | -9/Exiles | Led the pair of lost Derelicts to a safe place 779 | -9/Exiles | Met EX-DEC 801 | -9/Exiles | Met EX-BIN 805 | -9/Exiles | Aligned with FarCom system 806 | -9/Exiles | Given EX-Vault access code 815 | -9/Exiles | Opened EX-Vault 817 | -9/Exiles | Found Prototype Device 817 | -9/Exiles | Identified PSU Rigger 827 | -9/Exiles | Found YOLO Cannon 835 | -9/Exiles | Warned to stay clear of 0b10 Research branches 860 | -9/Exiles | Discovered new exit (range 15) 876 | -9/Exiles | Left Exiles lab with YOLO Cannon 876 | -9/Exiles | Entered Mines 928 | -8/Mines | Discovered exit to Materials (range 11) 932 | -8/Mines | Entered Materials 932 | -8/Materials | Evolved 2 slots: Propulsion x1, Utility x1 1053 | -8/Materials | Discovered new exit (range 3) 1055 | -8/Materials | Entered Factory 1055 | -7/Factory | Evolved 2 slots: Power x1, Utility x1 1421 | -7/Factory | Build established: Scavenger-Mutant 1918 | -7/Factory | Core integrity fell below 50% 1960 | -7/Factory | Core integrity fell below 20% 1969 | -7/Factory | Lost 11 parts (2p4n3u2w) 1975 | -7/Factory | Destroyed by G-47 Trooper with Particle Gun Last Messages --------------- 01890_ Imp. Propulsion Shielding destroyed. 01890_ Flight Unit destroyed. 01891_ K-01 Serf cleans the Fusion Modulator. 01896_ Acquired 118 matter. 01897_ VTOL Module destroyed. 01900_ K-01 Serf collects debris. 01910_ Weight Redist. System destroyed. 01938_ YOLO Cannon destroyed. 01941_ Slammed into S-27 Virus. 01944_ K-01 Serf cleans the Terminal. 01944_ Slammed into S-27 Virus. 01949_ Slammed into U-05 Engineer. 01949_ K-01 Serf cleans the Terminal. 01952_ Slammed into S-27 Virus. 01952_ K-01 Serf cleans the Terminal. 01955_ Slammed into S-27 Virus. 01971_ W-25 Informer sends out distress signal. 01971_ Slammed into S-27 Virus. 01973_ K-01 Serf cleans the Terminal. 01973_ Slammed into S-27 Virus. Map ----- +----------------------------------------------------+ | ????????????????????????????????????????########## | | ????????????????#######?????????????????# | | ????????????????# ################## | | ????????????????#""" # ## | | ????????????????#"T # ## | | ????????????????#""" + ! ## | | ????????????????# ] # ## ! | | ????????????????# ] # """""" ## | | ????????????????######## """""" #####+####+ | | ???????????????????????# """""" #???# | | ???????????????????????# """""" ##### | | ????????????############ | | ????????????# """"" ## | | ????????????# ""T"" ! # "" ^ | | ????????????# gg # "" #### | | ############# """ """ # "T #??# | | + """ """ + "" #### #??# | | ########### """ """ #g "" #??# #??# | | ????????????# # k #??# #??# | | ????????????# * ! # ####+####+ | | ????????????############ ######## # | | ???????????????????????# w #??????# # | | ???????????????????????# sss#??????# # | | ???????????????????????+ #??????+ # | | ???????????????????????# #??????# # = | | ???????????????????????# @ #??????# # ! | | ???????????????????????# s #??????# # | | ???????????????????????# #??????? # | | ????????????????######## #??????????# | | ????????????????# #??????????# | | ????????????????# #??????????# | | ????????????????# #??????????# | | ????????????????# #??????????########## | | ????????????????# #???????????????????? | | ????????????????# ########???????p???????????? | | ????????????????# ???????????????????????????? | | ?????????????? ???????????????????????????? | | ??????????? ????????????????????????????? | | ?????????? ????????????????????????????? | | ????????? ????????????????????????????? | | ????????? ?????????????????????????????? | | ??????????##########?????????????????????????????? | | ?????????????????????????????????????????????????? | | ??????????????????????????????????????????????#### | | ??????????????????????????????????????????? | | ??????????????????????????????????????????????#### | | ?????????????????????????????????????????????????? | | ?????????????????????????????????#???????????????? | | ???????????????????????????????? ??????????????? | | ????????????????????????????????? ??????????????? | +----------------------------------------------------+ Best States ------------- Heat Dissipation 35 Energy Generation 23 Energy Capacity 175 Matter Stores 300 Matter Capacity 300 Sight Range 16 Terrain Scan Density 10 Additional Mass Support 6 Propulsion Shielding 66 Evasion (%) 64 Item Schematics ----------------- VTOL Module | -7/Factory | Scanalyzed Robot Schematics ------------------ None Fabricated ------------ Nothing Alien Tech Used ----------------- None Achievements -------------- None Challenges ------------ None Game ------ Seed MissileFlightThruster Manual? 0 Play Time 00:29:03 Cumulative 13.7 hours Start 2024.04.10 @ 14:44:49 End 2024.04.10 @ 15:12:39 Sessions 1 Manual Loads 0 Difficulty Rogue Special Mode None Game No. 15 Rogue 15 Adventurer 0 Explorer 0 Win Type - Total 0 Types 0/0/0/0/0/0/0/0/0 Lore% 20 Gallery% 22 Achievement% 21 Wizard Run 0 Options --------- Layout 0 ASCII 0 Keyboard 0 Movement Numpad Keybinds 0 Fullscreen 2 Font 18/X11 Map View 38x25 Zoom Use 83% Tactical HUD 1 Map Filters NONE Filters NONE Steam 1 RUN: 098a4f77-b3d7-4d21-b337-bb4dcb8982d6